Cogmind - Beta 15 @@@ ROGUE MODE // 2025.06.30 @ 07:45:20 Player: CL-1C0 Result: Self-destructed Performance ------------- Evolutions (6) 3000 Regions Visited (14) 2800 Robots Destroyed (40) 200 Value Destroyed (1104) 1104 Prototype IDs (22) 440 Alien Tech Used (0) 0 Bonus (261) 261 TOTAL SCORE: 7805 Bonus ------- High Alert Combat Kills 6 Follower Combat Kills 167 Entered Garrisons 400 Used RIF Installer 1500 Entered DSFs 500 Registered with UFD 300 Met Optimus in HQ 500 Friendly Fire -3112 Cogmind --------- Core Integrity 1062/1150 Matter 26/300 Energy 100/100 System Corruption 2% Temperature Cool (0) Movement Core (350) Ox6 Location -4/Factory Parts ------- > --- POWER (1) -------- (None) > --- PROPULSION (6) --- (None) > --- UTILITY (10) ----- Large Storage Unit Improved Sensor Array Improved Signal Interpreter Improved Signal Interpreter Experimental Targeting Computer Hacking Suite Hacking Suite Improved System Shield Relay Coupler [NC] (14) > --- WEAPON (2) ------- (None) > --- INVENTORY (15) --- Antigrav Array Improved Coolant Injector Improved Transmission Jammer Improved Thermal Defense Suite Hacking Suite Mapping Drone Bay (3/3) Heavy Missile Launcher Improved Remote Datajack Makeshift Hammer Peak State ------------ > --- POWER ------------ Light Angular Momentum Engine > --- PROPULSION ------- Nuclear Pulse Thruster Nuclear Pulse Thruster Flightbrick > --- UTILITY ---------- Power Amplifier Large Storage Unit Deep Structural Scanner Improved Signal Interpreter Surveybot 17 Chip Experimental Targeting Computer Improved Transmission Jammer Hacking Suite Hacking Suite Improved System Shield Relay Coupler [NC] > --- WEAPON ----------- Powered Hammer > --- INVENTORY -------- Light Antimatter Reactor Antigrav Array VTOL Module Experimental Targeting Computer Improved Thermal Defense Suite Relay Coupler [Grunt] Relay Coupler [Hunter] Mapping Drone Bay Heavy Missile Launcher Improved Remote Datajack Powered Hammer Makeshift Hammer Spear DRS Beacon [Rating: 107] Favorites ----------- Power Light Nuclear Core Engine Light Ion Engine Power Core Light Nuclear Core Reactor Light Antimatter Reactor Propulsion Light Treads Treads Light Treads Leg Aluminum Leg Wheel Armored Wheel Flight Unit Flightbrick Utility Hacking Suite Device Disposable Heat Sink Storage Large Storage Unit Processor Improved Signal Interpreter Hackware Hacking Suite Weapon Makeshift Hammer Energy Gun Subdweller Laser Ballistic Gun Assault Rifle Launcher Rocket Launcher Special Weapon Mining Laser Impact Weapon Makeshift Hammer Piercing Weapon Spear Special Melee Weapon Datajack Build | -11 -10 -10 -10 -8 -8 -6 -6 -6 -6 -5 -5 -5 -5 -4 ------- Run | Yrd Mat Min Sub Rec Scr Fac Gar Fac Ext Fac Gar Fac DSF Fac Slots Evolved 12 | . . . . . . 8 . . . 2 . . . 2 Power . | . . . . . . . . . . . . . . . Propulsion 4 | . . . . . . 4 . . . . . . . . Utility 8 | . . . . . . 4 . . . 2 . . . 2 Weapon . | . . . . . . . . . . . . . . . Parts Attached 65 | . . 1 11 1 9 12 4 9 2 9 2 3 . 2 Power 5 | . . . 1 . 1 1 . 1 . . 1 . . . Engine 2 | . . . . . 1 . . 1 . . . . . . Core 2 | . . . 1 . . 1 . . . . . . . . Reactor 1 | . . . . . . . . . . . 1 . . . Propulsion 12 | . . . 3 . 3 2 . 3 . 1 . . . . Treads 3 | . . . 2 . 1 . . . . . . . . . Leg . | . . . . . . . . . . . . . . . Wheel 2 | . . . 1 . 1 . . . . . . . . . Hover . | . . . . . . . . . . . . . . . Flight 7 | . . . . . 1 2 . 3 . 1 . . . . Utility 30 | . . . 1 . 3 8 2 2 1 8 . 3 . 2 Device 12 | . . . 1 . 1 3 1 . 1 3 . 2 . . Storage 2 | . . . . . 2 . . . . . . . . . Processor 7 | . . . . . . 4 . . . 2 . 1 . . Hackware 9 | . . . . . . 1 1 2 . 3 . . . 2 Protection . | . . . . . . . . . . . . . . . Artifact . | . . . . . . . . . . . . . . . Weapon 18 | . . 1 6 1 2 1 2 3 1 . 1 . . . Energy Gun 1 | . . . 1 . . . . . . . . . . . Energy Cannon . | . . . . . . . . . . . . . . . Ballistic Gun 3 | . . . 1 1 1 . . . . . . . . . Ballistic Cannon . | . . . . . . . . . . . . . . . Launcher 4 | . . 1 2 . . . 1 . . . . . . . Special Weapon 4 | . . . 1 . . 1 1 1 . . . . . . Impact Weapon 3 | . . . 1 . . . . . 1 . 1 . . . Slashing Weapon . | . . . . . . . . . . . . . . . Piercing Weapon 1 | . . . . . . . . 1 . . . . . . Special Melee Weapon 2 | . . . . . 1 . . 1 . . . . . . Unidentified Prototypes 2 | . . . . . . . . . . 2 . . . . Parts Lost 17 | . . . 1 . . . 2 3 2 2 2 . 1 4 Power 1 | . . . . . . . . . . 1 . . . . Propulsion 5 | . . . . . . . 1 1 . . . . 1 2 Utility 7 | . . . . . . . . 1 2 1 2 . . 1 Weapon 4 | . . . 1 . . . 1 1 . . . . . 1 Highest Loss Streak 4 | . . . 1 . . . 1 3 2 1 2 . 1 4 To Critical Strikes . | . . . . . . . . . . . . . . . Average Backups 8 | . 6 8 6 5 5 11 13 13 13 12 12 12 12 9 Power . | . 1 1 1 1 . . . . 1 1 . . . . Propulsion 1 | . 4 4 1 1 1 . . . . 1 1 1 1 1 Utility 3 | . . . . . 1 4 8 9 8 5 6 6 6 5 Weapon 2 | . 1 3 3 3 1 1 1 1 2 3 4 4 3 2 Tool/Special . | . . . . . . . . . . . . . . . Unused Backups 29 | . 6 . 7 . 5 2 . 1 . 1 1 . 2 4 Power 4 | . 1 . 2 . 1 . . . . . . . . . Propulsion 7 | . 2 . 3 . . . . . . 1 . . . 1 Utility 11 | . 1 . 1 . 2 1 . 1 . . 1 . 2 2 Weapon 5 | . 2 . 1 . 2 . . . . . . . . . Tool/Special 2 | . . . . . . 1 . . . . . . . 1 Average Slot Usage (%) 77 | . 85 85 92 100 71 59 62 72 73 78 71 70 70 72 Engine 4 | . 14 14 8 . 4 2 . . 5 5 . . . . Core 4 | . . . 5 14 7 2 5 4 . . . . . . Treads 8 | . . . 21 14 13 . . . . . . . . . Leg 3 | . 28 28 4 . . . . . . . . . . . Wheel 4 | . . . 2 14 9 . . . . . . . . . Flight 5 | . . . . . . 15 13 14 16 15 15 15 13 8 Device 8 | . . . 6 14 11 11 1 3 1 11 7 7 10 8 Storage 10 | . 14 14 14 14 12 5 5 5 5 5 5 5 5 4 Processor 6 | . . . . . . 12 22 22 20 14 15 19 21 18 Hackware 4 | . . . . . . 1 9 13 16 21 18 15 15 22 Energy Gun 2 | . 14 . 6 14 2 . . . . . . . . . Ballistic Gun 4 | . 14 14 7 12 4 . . . . . . . . . Launcher 1 | . . 13 2 . . . . . . . . . . . Impact Weapon 2 | . . . 5 1 2 2 2 2 1 5 3 1 . . Peak Build Rating 107 | . 6 7 19 19 29 85 88 99 92 107 107 99 96 98 Average Rating 40 | . 6 6 12 17 14 77 78 90 88 104 98 95 91 93 On Entrance 52 | 6 6 6 7 19 17 26 85 74 87 84 101 90 96 83 Naked Turns . | . . . . . . . . . . . . . . . Heaviest Build 41 | 11 11 14 20 19 36 32 31 32 36 35 36 37 34 41 Greatest Support 40 | 20 20 20 40 20 20 32 32 36 36 36 36 36 36 30 Greatest Overweight (x) 2 | . . . . . 2 . . 1 . . . 1 . 1 Average Overweight (x) . | . . . . . . . . . . . . . . . Largest Inventory Capacity 15 | . 8 8 8 8 15 15 15 15 15 15 15 15 15 15 Average Capacity 11 | . 8 8 8 8 10 15 15 15 15 15 15 15 15 15 Most Carried 15 | . 8 8 8 8 15 15 15 15 15 15 15 15 15 14 Average Carried 10 | . 6 8 7 8 8 13 14 14 14 14 14 14 13 10 Final Capacity 15 | 8 8 8 8 8 15 15 15 15 15 15 15 15 15 15 Final Carried 15 | 6 8 8 8 8 15 15 15 15 15 15 15 15 14 10 Class Distribution -------------------- 42% | Mutant 18% | Hacker-Mutant 15% | Scavenger-Mutant 8% | Scout 6% | Derelict-Mutant 4% | Hacker-Scout Dominant Class ---------------- Mutant | -10/Materials Mutant | -10/Mines Mutant | -10/Subcaves Scavenger-Mutant | -8/Recycling Mutant | -8/Scraptown Scout | -6/Factory Hacker-Mutant | -6/Garrison Scout | -6/Factory Hacker-Mutant | -6/Extension Hacker-Mutant | -5/Factory Hacker-Mutant | -5/Garrison Hacker-Scout | -5/Factory Hacker-Scout | -5/DSF Hacker-Assassin | -4/Factory Resources | -11 -10 -10 -10 -8 -8 -6 -6 -6 -6 -5 -5 -5 -5 -4 ----------- Run | Yrd Mat Min Sub Rec Scr Fac Gar Fac Ext Fac Gar Fac DSF Fac Matter Collected 1139 | 200 . 50 238 14 114 63 100 159 89 112 . . . . Remotely . | . . . . . . . . . . . . . . . Salvage Created 1118 | . . 9 224 125 . 23 100 159 250 178 . . . 50 Parts 64 | . . 4 12 3 . 7 4 8 7 17 . . . 2 Haulers Intercepted 1 | . . . . . . . . . . 1 . . . . Recyclers Shooed 2 | . . . . . . . . . 2 . . . . . Parts Field Recycled . | . . . . . . . . . . . . . . . Retrieved Matter . | . . . . . . . . . . . . . . . Parts Self-Destructed 10 | . . . 10 . . . . . . . . . . . Prevented . | . . . . . . . . . . . . . . . Kills | -11 -10 -10 -10 -8 -8 -6 -6 -6 -6 -5 -5 -5 -5 -4 ------- Run | Yrd Mat Min Sub Rec Scr Fac Gar Fac Ext Fac Gar Fac DSF Fac Combat Hostiles Destroyed 27 | . . 2 9 . . . 3 2 . 7 . . . 4 Melee 6 | . . . 1 . . . 2 2 . . . . . 1 AOE 20 | . . 2 7 . . . 1 . . 7 . . . 3 Classes Destroyed 11 | . . 1 3 1 . 1 2 . 1 2 . . . . Builder 2 | . . . . . . . . . . 2 . . . . Hauler 1 | . . . . . . . . . . 1 . . . . Recycler 2 | . . . . 1 . . . . 1 . . . . . Operator 3 | . . . . . . 1 . 1 1 . . . . . Turret 2 | . . . 2 . . . . . . . . . . . Watcher 1 | . . . . . . . . . 1 . . . . . Swarmer 17 | . . 2 4 . . . . . . 7 . . . 4 Grunt 3 | . . . 1 . . . . 2 . . . . . . Sentry 1 | . . . . . . . 1 . . . . . . . Programmer 2 | . . . . . . . 2 . . . . . . . Subdweller 5 | . . . 5 . . . . . . . . . . . Best Kill Streak 8 | . . 2 8 1 . . 2 1 2 5 . . . 4 Combat Bots Only 6 | . . 2 6 . . . 2 1 . 4 . . . 4 Max Kills in Single Turn 4 | . . 2 4 1 . 1 1 1 1 3 . . . 3 Gunslinging . | . . . . . . . . . . . . . . . Exploded 3 | . . 2 3 . . . 1 . . 2 . . . 3 Melee 1 | . . . 1 . . . 1 1 . . . . . 1 Uniques/NPCs Destroyed 1 | . . . . . . . . . 1 . . . . . A7 (-6/Extension) Combat | -11 -10 -10 -10 -8 -8 -6 -6 -6 -6 -5 -5 -5 -5 -4 -------- Run | Yrd Mat Min Sub Rec Scr Fac Gar Fac Ext Fac Gar Fac DSF Fac Hostile Shots Fired 326 | . . 3 21 . . . 82 52 30 84 4 . 27 23 Missed 139 | . . 2 5 . . . 29 24 23 32 2 . 16 6 Hits 187 | . . 1 16 . . . 53 28 7 52 2 . 11 17 Melee 1 | . . . . . . . . . . . . . 1 . Projectile 186 | . . 1 16 . . . 53 28 7 52 2 . 10 17 AOE 3 | . . . 2 . . . . . . . . . 1 . Critical Strikes 5 | . . . . . . . 3 . 1 . . . 1 . Damage Taken 3728 | . . 42 405 . . . 876 431 176 934 315 . 297 252 Core 523 | . . 22 62 . . . 116 61 30 101 25 . 18 88 Absorbed by Shields 31 | . . . . . . . . . . . . . 31 . Core Remaining (%) 81 | 100 . . . . 66 . . . 75 . . . 85 . Volleys Fired 38 | . . 4 17 4 . 1 4 1 . 6 . . . 1 Largest 2 | . . 1 2 2 . 1 1 1 . 1 . . . 1 Hottest 120 | . . 33 120 90 . . 39 . . 39 . . . 39 Shots Fired 45 | . . 4 20 8 . 1 4 1 . 6 . . . 1 Gun 16 | . . . 8 8 . . . . . . . . . . Cannon . | . . . . . . . . . . . . . . . Launcher 22 | . . 4 7 . . . 4 . . 6 . . . 1 Special 7 | . . . 5 . . 1 . 1 . . . . . . Kinetic 9 | . . . 5 4 . . . . . . . . . . Thermal 15 | . . . 11 4 . . . . . . . . . . Explosive 19 | . . 4 4 . . . 4 . . 6 . . . 1 Electromagnetic . | . . . . . . . . . . . . . . . Robot Hit Streak 7 | . . . 3 2 . 3 6 7 . 1 . . . . Robot Miss Streak 2 | . . 1 1 . . . . . . 2 . . . . Penetration Max . | . . . . . . . . . . . . . . . Secondary Targets . | . . . . . . . . . . . . . . . Shots Hit Robots 77 | . . . 10 2 . 2 18 12 25 3 . . . 5 Core Hits 54 | . . 3 16 2 . 1 8 4 8 9 . . . 3 Critical Kills . | . . . . . . . . . . . . . . . Critical Parts Destroyed 4 | . . . 2 . . . 2 . . . . . . . Critical Strikes 6 | . . . 2 . . . 2 1 1 . . . . . Smash 4 | . . . 2 . . . 2 . . . . . . . Impale 2 | . . . . . . . . 1 1 . . . . . Melee Attacks 180 | . . . 47 . . 9 30 28 26 13 15 2 . 10 Impact 121 | . . . 47 . . 9 30 11 . 13 9 2 . . Slashing . | . . . . . . . . . . . . . . . Piercing 58 | . . . . . . . . 16 26 . 6 . . 10 Sneak Attacks 26 | . . . . . . 1 . 1 23 1 . . . . Combat Hostiles . | . . . . . . . . . . . . . . . Follow-up Attacks . | . . . . . . . . . . . . . . . Damage Inflicted 4922 | . . 225 881 43 . 90 783 310 1170 949 . . . 471 Guns 43 | . . . . 43 . . . . . . . . . . Cannons . | . . . . . . . . . . . . . . . Explosions 2084 | . . 225 582 . . . 124 . . 811 . . . 342 Melee 2795 | . . . 299 . . 90 659 310 1170 138 . . . 129 Ramming . | . . . . . . . . . . . . . . . Kinetic 142 | . . . 142 . . . . . . . . . . . Thermal 151 | . . . . 43 . . . . . 108 . . . . Explosive 1834 | . . 225 440 . . . 124 . . 703 . . . 342 Electromagnetic . | . . . . . . . . . . . . . . . Impact 1236 | . . . 299 . . 90 659 50 . 138 . . . . Slashing . | . . . . . . . . . . . . . . . Piercing 1559 | . . . . . . . . 260 1170 . . . . 129 Highest Corruption 7 | . . . . . . 1 . . 7 . 6 6 6 2 Average Corruption 4 | . . . . . . 1 . . 6 . 6 6 6 1 Corruption Purged 1 | . . . . . . . . . 1 . . . . . Corruption Blocked . | . . . . . . . . . . . . . . . Effects 13 | . . . . . . 1 . . 2 . 1 4 3 2 Message Errors 2 | . . . . . . . . . 1 . 1 . . . Matter Fused 3 | . . . . . . 1 . . . . . 2 . . Heat Flow Errors 5 | . . . . . . . . . 1 . . 1 3 . Energy Discharges 1 | . . . . . . . . . . . . 1 . . Parts Rejected 1 | . . . . . . . . . . . . . . 1 Data Loss (major) 1 | . . . . . . . . . . . . . . 1 Overload Shots . | . . . . . . . . . . . . . . . Overflow Damage 552 | . . 3 115 . . . 126 15 81 145 . . . 67 Projectiles . | . . . . . . . . . . . . . . . Explosions 86 | . . 3 10 . . . . . . 27 . . . 46 Melee 466 | . . . 105 . . . 126 15 81 118 . . . 21 Knockbacks 1 | . . . . . . . . 1 . . . . . . Impact 1 | . . . . . . . . 1 . . . . . . Kinetic . | . . . . . . . . . . . . . . . Secondary . | . . . . . . . . . . . . . . . Self-Inflicted Damage 127 | . . 33 30 . . . . . . 64 . . . . Shots 3 | . . 1 1 . . . . . . 1 . . . . Rammed 1 | . . . . . . . . . . . . . . 1 Targets Rammed 1 | . . . . . . . . . . . . . . 1 Kicked . | . . . . . . . . . . . . . . . Crushed . | . . . . . . . . . . . . . . . Highest Temperature 285 | . . . . 72 . . 14 12 268 25 1 285 202 . Average Temperature 88 | . . . . 30 . . 9 6 111 13 1 166 92 . Received Heat Transfer 486 | . . . 72 . . . 60 168 30 123 9 . 24 . Effects 1 | . . . . . . . . . . . . 1 . . Energy Bleed 1 | . . . . . . . . . . . . 1 . . Siege Activations . | . . . . . . . . . . . . . . . Martial Activations . | . . . . . . . . . . . . . . . Shielding Activations . | . . . . . . . . . . . . . . . Robots Disrupted . | . . . . . . . . . . . . . . . Combat Hostiles . | . . . . . . . . . . . . . . . Robots Corrupted 2 | . . . 1 . . . . 1 . . . . . . Combat Hostiles 1 | . . . 1 . . . . . . . . . . . Parts Fried 4 | . . . 3 . . . . . . 1 . . . . Impact Corruptions 13 | . . . 3 . . . 7 2 . 1 . . . . Robots Melted . | . . . . . . . . . . . . . . . Combat Hostiles . | . . . . . . . . . . . . . . . Parts Melted . | . . . . . . . . . . . . . . . Heat Transferred 100 | . . . . 50 . . . . . 50 . . . . Parts Sabotaged . | . . . . . . . . . . . . . . . Parts Stolen . | . . . . . . . . . . . . . . . Parts Stripped . | . . . . . . . . . . . . . . . Power Chain Reactions . | . . . . . . . . . . . . . . . Alert | -11 -10 -10 -10 -8 -8 -6 -6 -6 -6 -5 -5 -5 -5 -4 ------- Run | Yrd Mat Min Sub Rec Scr Fac Gar Fac Ext Fac Gar Fac DSF Fac Maximum Alert Level 2 | . . . . . . . . 1 . 2 1 1 . . Low Security (%) 87 | . 100 100 . 100 . 100 100 77 100 40 . 76 100 100 Level 1 11 | . . . . . . . . 22 . 46 100 23 . . Level 2 1 | . . . . . . . . . . 12 . . . . Level 3 . | . . . . . . . . . . . . . . . Level 4 . | . . . . . . . . . . . . . . . Level 5 . | . . . . . . . . . . . . . . . High Security . | . . . . . . . . . . . . . . . Max Security . | . . . . . . . . . . . . . . . Peak Influence 475 | . . 95 . 30 . 22 163 244 136 475 366 204 150 136 Initial 332 | . . . . . . . . 93 112 18 332 184 135 73 Average 85 | . . 21 . 7 . 3 78 146 100 222 348 194 141 62 Influence Increases 2056 | . . 120 206 112 . 80 198 389 46 607 41 59 15 183 Destroy 0b10 Robot/C 560 | . . 60 160 . . . 60 40 20 140 . . . 80 Destroy 0b10 Robot/NC 45 | . . . . 10 . . . 5 15 15 . . . . Destroy Leader 64 | . . 10 10 . . . . 10 2 22 . . . 10 Allied During Kill 58 | . . 18 36 . . . . . 4 . . . . . Successful Hack 254 | . . . . 11 . 44 18 52 5 70 16 12 . 26 Select Force Hacks 120 | . . . . 90 . . . 30 . . . . . . Disable Machine 105 | . . . . . . 15 . 30 . 30 . 15 . 15 Destroy Structure 205 | . . 32 . 1 . 6 15 12 . 90 25 2 . 22 Partial Spotted 105 | . . . . . . 15 . 30 . 30 . 30 . . Lose Combat Pursuer 540 | . . . . . . . 105 180 . 210 . . 15 30 Influence Decreases 1950 | . . 109 217 112 . 80 20 337 238 170 163 219 68 217 Entered New Map 667 | . . . 7 . . . . 85 118 20 143 169 58 67 Time Decay 1073 | . . 109 160 112 . 80 . 222 100 130 . 50 . 110 Lost Part 170 | . . . 10 . . . 20 30 20 20 20 . 10 40 Lost Ally 40 | . . . 40 . . . . . . . . . . . Squads Dispatched 24 | . . . . . . 5 . 9 2 7 . . 1 . Investigation 12 | . . . . . . 4 . 6 . 2 . . . . Extermination 4 | . . . . . . 1 . 3 . . . . . . Reinforcement 6 | . . . . . . . . . 2 3 . . 1 . Assault 2 | . . . . . . . . . . 2 . . . . Garrison . | . . . . . . . . . . . . . . . Intercept . | . . . . . . . . . . . . . . . Searches Triggered . | . . . . . . . . . . . . . . . Construction Impeded 1 | . . . . . . . . . . 1 . . . . Haulers Reinforced . | . . . . . . . . . . . . . . . Active Scanning Responses . | . . . . . . . . . . . . . . . Cargo Convoy Interrupts . | . . . . . . . . . . . . . . . Stealth | -11 -10 -10 -10 -8 -8 -6 -6 -6 -6 -5 -5 -5 -5 -4 --------- Run | Yrd Mat Min Sub Rec Scr Fac Gar Fac Ext Fac Gar Fac DSF Fac Distress Signals 4 | . . . . . . . . . 1 2 1 . . . Communications Jammed . | . . . . . . . . . . . . . . . Distress Signals . | . . . . . . . . . . . . . . . Times Spotted 139 | . . 6 16 . . 3 18 25 9 44 2 . 9 7 Peak Tracking Total 20 | . . 3 6 . . 2 15 8 4 20 2 . 8 5 Tactical Retreats 15 | . . . . . . . 3 6 . 4 . . 1 1 Traps | -11 -10 -10 -10 -8 -8 -6 -6 -6 -6 -5 -5 -5 -5 -4 ------- Run | Yrd Mat Min Sub Rec Scr Fac Gar Fac Ext Fac Gar Fac DSF Fac Traps Triggered 7 | . . . 1 . . 1 . . . 1 . . 2 2 Indirectly . | . . . . . . . . . . . . . . . Trap Hack Attempts 1 | . . . . . . 1 . . . . . . . . Triggered . | . . . . . . . . . . . . . . . Disarmed . | . . . . . . . . . . . . . . . Reprogrammed 1 | . . . . . . 1 . . . . . . . . Reused . | . . . . . . . . . . . . . . . Traps Extracted . | . . . . . . . . . . . . . . . Installed . | . . . . . . . . . . . . . . . Triggered . | . . . . . . . . . . . . . . . Machines | -11 -10 -10 -10 -8 -8 -6 -6 -6 -6 -5 -5 -5 -5 -4 ---------- Run | Yrd Mat Min Sub Rec Scr Fac Gar Fac Ext Fac Gar Fac DSF Fac Machines Disabled 11 | . . . 4 . . 1 . 2 . 2 . 1 . 1 Max in Single Turn 2 | . . . 2 . . 1 . 1 . 2 . 1 . 1 Garrison Access 3 | . . . . . . 1 . . . 1 . . . 1 Energy Cycler 1 | . . . . . . . . . 1 . . . . . Machines Repaired . | . . . . . . . . . . . . . . . Machines Dismantled . | . . . . . . . . . . . . . . . Machines Sabotaged . | . . . . . . . . . . . . . . . Overloaded Fab Kills . | . . . . . . . . . . . . . . . Hacking | -11 -10 -10 -10 -8 -8 -6 -6 -6 -6 -5 -5 -5 -5 -4 --------- Run | Yrd Mat Min Sub Rec Scr Fac Gar Fac Ext Fac Gar Fac DSF Fac Machines Accessed 50 | . . . 1 5 1 14 1 13 2 7 1 2 . 3 Terminals 29 | . . . . 2 . 6 1 9 2 5 1 1 . 2 Fabricators 5 | . . . . . . 2 . 2 . . . 1 . . Repair Stations . | . . . . . . . . . . . . . . . Recycling Units 9 | . . . . 3 . 4 . 1 . 1 . . . . Scanalyzers . | . . . . . . . . . . . . . . . Garrison Access 5 | . . . . . . 2 . 1 . 1 . . . 1 Total Hacks 129 | . . . 1 12 17 23 2 26 2 34 2 3 . 7 Successful 69 | . . . 1 7 17 9 1 8 2 18 1 2 . 3 Failed 60 | . . . . 5 . 14 1 18 . 16 1 1 . 4 Catastrophic 13 | . . . . . . 3 1 3 . 3 1 . . 2 Database Lockouts . | . . . . . . . . . . . . . . . Manual 70 | . . . . 9 . 17 2 14 . 23 2 1 . 2 Terminals 84 | . . . . 7 . 12 2 19 2 32 2 2 . 6 Fabricators 9 | . . . . . . 4 . 4 . . . 1 . . Repair Stations . | . . . . . . . . . . . . . . . Recycling Units 11 | . . . . 5 . 4 . 1 . 1 . . . . Scanalyzers . | . . . . . . . . . . . . . . . Garrison Access 7 | . . . . . . 3 . 2 . 1 . . . 1 Terminal Hacks 41 | . . . 1 3 17 . 1 4 2 9 1 1 . 2 Record 17 | . . . . . 17 . . . . . . . . . Part Schematic 2 | . . . . . . . . . . 2 . . . . Robot Schematic 1 | . . . . 1 . . . . . . . . . . Prototype ID Bank 1 | . . . . 1 . . . . . . . . . . Open Door 3 | . . . . . . . . 1 2 . . . . . Open DSF 1 | . . . . . . . . . . . . 1 . . Level Access Points 2 | . . . . . . . . . . 1 . . . 1 Branch Access Points 2 | . . . . . . . . 1 . 1 . . . . Machine Index 3 | . . . . . . . . 1 . 1 . . . 1 Terminal Index 1 | . . . . . . . . . . 1 . . . . Recycling Unit Index 1 | . . . . . . . . 1 . . . . . . Recall Assault 1 | . . . . . . . . . . 1 . . . . Zone Layout 3 | . . . . 1 . . . . . 2 . . . . Garrison Registry 2 | . . . . . . . 1 . . . 1 . . . Proto ID Catalog 1 | . . . 1 . . . . . . . . . . . Fabricator Hacks 1 | . . . . . . . . 1 . . . . . . Network Status 1 | . . . . . . . . 1 . . . . . . Repair Station Hacks . | . . . . . . . . . . . . . . . Recycling Unit Hacks 1 | . . . . 1 . . . . . . . . . . Retrieve Components 1 | . . . . 1 . . . . . . . . . . Scanalyzer . | . . . . . . . . . . . . . . . Garrison Access Hacks 4 | . . . . . . 2 . . . 1 . . . 1 Unlock Access 2 | . . . . . . 1 . . . 1 . . . . Seal Access 2 | . . . . . . 1 . . . . . . . 1 Unauthorized Hacks 22 | . . . . 3 . 7 . 3 . 8 . 1 . . Terminals 10 | . . . . . . 3 . . . 7 . . . . Track 2 | . . . . . . . . . . 2 . . . . Assimilate 2 | . . . . . . 1 . . . 1 . . . . Botnet 3 | . . . . . . 1 . . . 2 . . . . Disrupt 1 | . . . . . . . . . . 1 . . . . Operators 2 | . . . . . . 1 . . . 1 . . . . Fabricators 2 | . . . . . . . . 1 . . . 1 . . Haulers 2 | . . . . . . . . 1 . . . 1 . . Repair Stations . | . . . . . . . . . . . . . . . Recycling Units 9 | . . . . 3 . 4 . 1 . 1 . . . . Tunnel 3 | . . . . 3 . . . . . . . . . . Fedlink 6 | . . . . . . 4 . 1 . 1 . . . . Scanalyzers . | . . . . . . . . . . . . . . . Garrison Access 1 | . . . . . . . . 1 . . . . . . Eject 1 | . . . . . . . . 1 . . . . . . Data Cores Recovered 1 | . . . . . . . . 1 . . . . . . Used . | . . . . . . . . . . . . . . . Hacking Detections 34 | . . . . 2 . 9 1 10 2 5 1 2 . 2 Full Trace Events 7 | . . . . 2 . . . 4 . 1 . . . . Feedback Events . | . . . . . . . . . . . . . . . Feedback Blocked . | . . . . . . . . . . . . . . . Robot Schematics Acquired 1 | . . . . 1 . . . . . . . . . . Robots Built . | . . . . . . . . . . . . . . . Authchips . | . . . . . . . . . . . . . . . Time . | . . . . . . . . . . . . . . . Total Robot Build Rating . | . . . . . . . . . . . . . . . Part Schematics Acquired 2 | . . . . . . . . . . 2 . . . . Parts Built . | . . . . . . . . . . . . . . . Authchips . | . . . . . . . . . . . . . . . Time . | . . . . . . . . . . . . . . . Total Part Build Rating . | . . . . . . . . . . . . . . . Parts Repaired . | . . . . . . . . . . . . . . . Time . | . . . . . . . . . . . . . . . Parts Recycled . | . . . . . . . . . . . . . . . Recycled Matter . | . . . . . . . . . . . . . . . Retrieved Matter . | . . . . . . . . . . . . . . . Retrieved Components 1 | . . . . 1 . . . . . . . . . . Parts Scanalyzed . | . . . . . . . . . . . . . . . Part Schematics Acquired . | . . . . . . . . . . . . . . . Parts Damaged . | . . . . . . . . . . . . . . . Bothacking | -11 -10 -10 -10 -8 -8 -6 -6 -6 -6 -5 -5 -5 -5 -4 ------------ Run | Yrd Mat Min Sub Rec Scr Fac Gar Fac Ext Fac Gar Fac DSF Fac Used RIF Installer 3 | . . . . . . . 2 . . . 1 . . . Robot Detection 1 | . . . . . . . . . . . 1 . . . Watcher Feeds 1 | . . . . . . . 1 . . . . . . . Robots Hacked 1 | . . . . . . . . 1 . . . . . . Non-combat 1 | . . . . . . . . 1 . . . . . . Combat . | . . . . . . . . . . . . . . . Robot Hacks Applied 1 | . . . . . . . . 1 . . . . . . drop_inventory 1 | . . . . . . . . 1 . . . . . . Relay Couplers Released 5 | . . . . . . . . 3 . 2 . . . . Ejected 3 | . . . . . . . . 3 . . . . . . Machine Destruction 2 | . . . . . . . . . . 2 . . . . Attached 1 | . . . . . . . . 1 . . . . . . Fabnet Peak Effective % . | . . . . . . . . . . . . . . . Robots Rewired . | . . . . . . . . . . . . . . . Allies Hacked . | . . . . . . . . . . . . . . . Hacks Repelled . | . . . . . . . . . . . . . . . Allies | -11 -10 -10 -10 -8 -8 -6 -6 -6 -6 -5 -5 -5 -5 -4 -------- Run | Yrd Mat Min Sub Rec Scr Fac Gar Fac Ext Fac Gar Fac DSF Fac Total Allies 7 | . . 4 . . . 1 . . 2 . . . . . Largest Group 4 | . . 4 4 1 1 1 . . 2 . . . . . Highest-Rated Group 182 | . . 71 71 16 16 26 . . 182 . . . . . Highest-Rated Ally 159 | . . 31 31 16 16 26 . . 159 . . . . . Total Orders . | . . . . . . . . . . . . . . . Ally Attacks 42 | . . 2 36 . . . . . 4 . . . . . Total Damage 516 | . . 29 409 . . . . . 78 . . . . . Kills 6 | . . 1 4 . . . . . 1 . . . . . Allies Corrupted . | . . . . . . . . . . . . . . . Allies Melted . | . . . . . . . . . . . . . . . Intel | -11 -10 -10 -10 -8 -8 -6 -6 -6 -6 -5 -5 -5 -5 -4 ------- Run | Yrd Mat Min Sub Rec Scr Fac Gar Fac Ext Fac Gar Fac DSF Fac Active Infowar (turns) 1796 | . . . . . 1 354 180 471 203 188 . 107 63 229 Sensors 574 | . . . . . . 206 . . . . . 76 63 229 Terrain 593 | . . . . . . 251 14 328 . . . . . . Structural 648 | . . . . . 1 61 . . 69 143 . 107 63 204 Traps 57 | . . . . . . . 57 . . . . . . . Machine Analysis 1144 | . . . . . . 290 180 471 203 . . . . . Cloaking 27 | . . . . . . 27 . . . . . . . . Jamming 87 | . . . . . . . . . . 87 . . . . Robot Analysis Total . | . . . . . . . . . . . . . . . Derelict Logs Recovered 6 | . . 1 1 . 4 . . . . . . . . . Drone Launches . | . . . . . . . . . . . . . . . Drone Recoveries . | . . . . . . . . . . . . . . . Exploration | -11 -10 -10 -10 -8 -8 -6 -6 -6 -6 -5 -5 -5 -5 -4 ------------- Run | Yrd Mat Min Sub Rec Scr Fac Gar Fac Ext Fac Gar Fac DSF Fac Turns Passed 5624 | . 41 547 890 390 1726 394 180 471 208 260 94 108 83 232 Spaces Moved 5844 | 1 33 424 451 302 1263 726 207 1022 273 468 153 248 89 184 Core 120 | . . . . . 120 . . . . . . . . . Treads 982 | . . . 308 91 583 . . . . . . . . . Legs 502 | 1 33 424 44 . . . . . . . . . . . Wheels 870 | . . . 99 211 560 . . . . . . . . . Hover . | . . . . . . . . . . . . . . . Flight 3370 | . . . . . . 726 207 1022 273 468 153 248 89 184 Fastest Speed 32 | 120 120 120 110 110 50 32 32 32 34 34 34 34 34 37 Average Speed 77 | 120 120 120 145 125 132 32 33 34 34 34 34 34 35 95 Slowest Speed 240 | 120 120 120 160 160 240 32 34 97 34 34 34 100 37 97 Overloaded Moves . | . . . . . . . . . . . . . . . Propulsion Burnouts . | . . . . . . . . . . . . . . . Robots Hopped 11 | . . . . . . 3 . 4 . 4 . . . . Potential Cave-ins 6 | . . . 1 . . . . . . . 5 . . . Cave-ins Triggered 1 | . . . . . . . . . . . 1 . . . Exploration Rate (%) 36 | 2 11 89 26 58 78 24 39 46 37 21 26 6 81 8 Regions Visited 14 Branch Regions 5 Pre-discovered Areas 9 | . . 1 . 3 4 1 . . . . . . . . Known Exits Taken 5 | . . . . . . 1 . 1 1 1 . 1 . . Unknown Exits Taken 6 | 1 1 1 1 1 1 . . . . . . . . . Scrap Searched 10 | . . 1 4 . 5 . . . . . . . . . Spaces Dug 94 | . . 8 17 1 . 6 18 12 . 11 10 1 . 10 Terrain Destroyed 259 | . . 40 67 1 . 6 60 12 . 52 10 1 . 10 Melee 55 | . . . 11 . . 6 1 12 . 11 10 1 . 3 Projectile 1 | . . . . 1 . . . . . . . . . . AOE 203 | . . 40 56 . . . 59 . . 41 . . . 7 Terrain Rammed . | . . . . . . . . . . . . . . . Walls Destroyed . | . . . . . . . . . . . . . . . Machines Disabled . | . . . . . . . . . . . . . . . Actions | -11 -10 -10 -10 -8 -8 -6 -6 -6 -6 -5 -5 -5 -5 -4 --------- Run | Yrd Mat Min Sub Rec Scr Fac Gar Fac Ext Fac Gar Fac DSF Fac Total 6684 | . 34 458 610 306 1323 877 283 1102 348 536 176 267 143 221 Wait 361 | . . 29 62 . . 108 27 29 40 26 . 10 11 19 Move 5810 | . 32 423 450 301 1262 720 206 1013 272 460 152 247 88 184 Hop 10 | . . . . . . 3 . 4 . 3 . . . . Pick Up 67 | . 2 . 8 . 30 8 1 6 3 5 1 . 3 . Fast Attach 27 | . . 1 3 . 3 6 1 3 1 7 . 2 . . Attach 44 | . . . 4 . 6 7 5 6 1 5 2 3 1 4 Detach 24 | . . . 1 . . 7 5 2 . 2 2 3 2 . Swap 25 | . . . 6 1 2 2 2 5 1 2 2 . . 2 Drop 63 | . . 1 12 . 20 5 2 5 4 7 2 . 5 . Fire 38 | . . 4 17 4 . 1 4 1 . 6 . . . 1 Melee 180 | . . . 47 . . 9 30 28 26 13 15 2 . 10 Ram 1 | . . . . . . . . . . . . . . 1 Kick . | . . . . . . . . . . . . . . . Crush . | . . . . . . . . . . . . . . . Escape Stasis 33 | . . . . . . . . . . . . . 33 . Rewire . | . . . . . . . . . . . . . . . Trap 1 | . . . . . . 1 . . . . . . . . Miscellaneous . | . . . . . . . . . . . . . . . Route ------- -11/Scrapyard -10/Materials -10/Mines (discovered 3 exits: [*Mat x2] / *Sub) -10/Subcaves -8/Recycling -8/Scraptown (discovered 2 exits: *Fac x2) -6/Factory (discovered 7 exits: *Fac x4 / Low / Ext / Gar) -6/Garrison (discovered 3 exits: *Fac x3) -6/Factory (discovered 8 exits: *Fac x4 / *Low x2 / *Ext x2) -6/Extension -5/Factory (discovered 7 exits: *Fac x4 / Upp x2 / Gar) -5/Garrison (discovered 3 exits: *Fac x3) -5/Factory -5/DSF -4/Factory (discovered 5 exits: Res x4 / Arm) History --------- Turn | Location | Event 1 | -11/Scrapyard | Discovered new exit (range 0) 1 | -11/Scrapyard | Entered Materials 20 | -10/Materials | Discovered new exit (range 10) 42 | -10/Materials | Entered Mines 43 | -10/Mines | Met a Derelict bent on vengeance 49 | -10/Mines | Received a Rocket Launcher from a helpful Derelict 170 | -10/Mines | Escorted by a lone wolf Derelict 179 | -10/Mines | Discovered new exit (range 8) 190 | -10/Mines | Learned location of Storage (-8) 223 | -10/Mines | Assisted by bots powering up and referring to "LRC-V3" 303 | -10/Mines | Build established: Mutant 367 | -10/Mines | Learned Materials emergency access door positions 500 | -10/Mines | Discovered new exit (range 16) 568 | -10/Mines | Discovered new exit (range 7) 589 | -10/Mines | Entered Subcaves 589 | -10/Subcaves | Accompanied by 4 allies 590 | -10/Subcaves | Approached by a straggling Scientist 659 | -10/Subcaves | Learned 2 Materials zone layouts 758 | -10/Subcaves | A swath of the cavern ceiling suddenly collapsed 806 | -10/Subcaves | Shifting Twisted Machinery released Sub. Shrapnel Launcher 810 | -10/Subcaves | Shifting Twisted Machinery released Mak. Hammer 935 | -10/Subcaves | Discovered new exit (range 11) 1083 | -10/Subcaves | Visited 4L-MR0's lab 1103 | -10/Subcaves | Found Flightbrick 1229 | -10/Subcaves | Disturbed a concealed Subdweller 1306 | -10/Subcaves | Disturbed a concealed Subdweller 1437 | -10/Subcaves | Ambushed by Subdweller buried in earth 1479 | -10/Subcaves | Entered Recycling 1479 | -8/Recycling | Accompanied by 1 ally 1625 | -8/Recycling | Build established: Scavenger-Mutant 1832 | -8/Recycling | Scanned before Scraplab entrance 1855 | -8/Recycling | Entered Scraplab 1867 | -8/Recycling | Discovered new exit (range 2) 1869 | -8/Recycling | Entered Scraptown 1869 | -8/Scraptown | Accompanied by 1 ally 2047 | -8/Scraptown | Heard Great Nut preacher, LISTEN AND RECITE! 2074 | -8/Scraptown | Visited UFD Registry 2074 | -8/Scraptown | Registered with UFD as "Gaussbucket" 2097 | -8/Scraptown | Visited The Evicted 2178 | -8/Scraptown | Scanned Subdweller tech in exchange for log data 2185 | -8/Scraptown | Learned Research stockpile data 2186 | -8/Scraptown | Learned Research interactive machine intel 2189 | -8/Scraptown | Learned 8 Research zone layouts 2218 | -8/Scraptown | Discovered new exit (range 11) 2490 | -8/Scraptown | Build established: Mutant 2621 | -8/Scraptown | Visited Curators Association 2650 | -8/Scraptown | Visited Scrap Suit Storage 2674 | -8/Scraptown | Visited DA-N13 Charitable Foundation 2688 | -8/Scraptown | Found DCF Scrap (28 items) 2813 | -8/Scraptown | Visited Infowarlord's Domain 2844 | -8/Scraptown | Visited Junk Repository 2896 | -8/Scraptown | Visited Cartography Club 2950 | -8/Scraptown | Visited Derelict Rescue Squad 3002 | -8/Scraptown | Found Surveybot 17 Chip 3029 | -8/Scraptown | Found Deep Structural Scanner 3034 | -8/Scraptown | Learned location of 3 exits from Proximity Caves 3034 | -8/Scraptown | Learned location of 2 exits from Factory 3034 | -8/Scraptown | Learned 4 Armory zone layouts 3034 | -8/Scraptown | Learned 24 Upper Caves zone layouts 3034 | -8/Scraptown | Learned 12 Upper Caves zone layouts 3034 | -8/Scraptown | Learned 8 Upper Caves zone layouts 3034 | -8/Scraptown | Learned 16 Lower Caves zone layouts 3034 | -8/Scraptown | Learned 20 Factory zone layouts 3034 | -8/Scraptown | Learned 8 Factory zone layouts 3034 | -8/Scraptown | Learned 16 Materials zone layouts 3034 | -8/Scraptown | Learned location of Quarantine (-3) 3034 | -8/Scraptown | Learned location of Cetus (-6) 3034 | -8/Scraptown | Learned location of Zion (-6) 3197 | -8/Scraptown | Found Exp. Terrain Scanner 3256 | -8/Scraptown | Visited Scrapoid Pod Storage 3264 | -8/Scraptown | Found Scrapoid Pod 3310 | -8/Scraptown | Found DRS Beacon 3390 | -8/Scraptown | Found Scrap Suit 3534 | -8/Scraptown | Met Optimus 3534 | -8/Scraptown | Accepted into 0bPrime 3553 | -8/Scraptown | Build established: Derelict-Mutant 3590 | -8/Scraptown | Discovered new exit (range 5) 3595 | -8/Scraptown | Entered Factory 3595 | -6/Factory | Evolved 8 slots: Propulsion x4, Utility x4 3596 | -6/Factory | Identified exit to Lower Caves 3596 | -6/Factory | Identified exit to Factory 3596 | -6/Factory | Attached Flightbrick, gained temporary slots: Utility x3 3618 | -6/Factory | Discovered exit to Factory (range 28) 3820 | -6/Factory | Loaded intel: 8 recycling unit locations 3837 | -6/Factory | Learned location of Protoforge (-3) 3843 | -6/Factory | Discovered new exit (range 29) 3989 | -6/Factory | Identified exit to Garrison 3989 | -6/Factory | Entered Garrison 4103 | -6/Garrison | Installed Relay Interface Framework 4120 | -6/Garrison | Discovered new exit (range 69) 4120 | -6/Garrison | Discovered new exit (range 48) 4120 | -6/Garrison | Discovered new exit (range 60) 4127 | -6/Garrison | Expanded RIF knowledge: Watcher Feeds 4147 | -6/Garrison | Triggered checkpoint 4169 | -6/Garrison | Identified exit to Factory 4169 | -6/Garrison | Entered Factory 4307 | -6/Factory | Identified exit to Extension 4334 | -6/Factory | Discovered exit to Factory (range 20) 4420 | -6/Factory | Discovered exit to Factory (range 28) 4433 | -6/Factory | Discovered exit to Factory (range 22) 4562 | -6/Factory | Lost 3 parts (1n1u1w) 4591 | -6/Factory | Loaded intel: 8 recycling unit locations 4594 | -6/Factory | Discovered exit to Factory (range 15) 4640 | -6/Factory | Entered Extension 4651 | -6/Extension | Rescued a captive Derelict 4669 | -6/Extension | Rescued A7 4681 | -6/Extension | Energy Cycler disabled 4681 | -6/Extension | Rescued a captive Derelict 4681 | -6/Extension | Rescued a captive Derelict 4681 | -6/Extension | Rescued a captive Derelict 4682 | -6/Extension | Rescued a captive Derelict 4682 | -6/Extension | Rescued a captive Derelict 4684 | -6/Extension | Rescued a captive Derelict 4684 | -6/Extension | Rescued a captive Derelict 4687 | -6/Extension | Rescued a captive Derelict 4742 | -6/Extension | Murdered A7 4745 | -6/Extension | Extracted ID and sensor layout for unrecognized location from A7's data core 4808 | -6/Extension | Spotted B-75 Beast 4814 | -6/Extension | Build established: Hacker-Mutant 4844 | -6/Extension | Spotted B-75 Beast 4845 | -6/Extension | Discovered exit to Factory (range 13) 4848 | -6/Extension | Entered Factory 4848 | -5/Factory | Evolved 2 slots: Utility x2 4868 | -5/Factory | Discovered new exit (range 11) 4916 | -5/Factory | Found Prototype Processor 4916 | -5/Factory | Identified Exp. Targeting Computer 4918 | -5/Factory | Found Exp. Targeting Computer 4949 | -5/Factory | Identified exit to Upper Caves 4949 | -5/Factory | Identified exit to Factory 5034 | -5/Factory | Spotted B-75 Beast 5038 | -5/Factory | Loaded intel: 8 recycling unit locations 5106 | -5/Factory | Identified exit to Garrison 5108 | -5/Factory | Entered Garrison 5148 | -5/Garrison | Discovered new exit (range 59) 5148 | -5/Garrison | Discovered new exit (range 62) 5148 | -5/Garrison | Discovered new exit (range 43) 5170 | -5/Garrison | Triggered checkpoint 5177 | -5/Garrison | Crushed by falling debris 5192 | -5/Garrison | Expanded RIF knowledge: Robot Detection 5202 | -5/Garrison | Identified exit to Factory 5202 | -5/Garrison | Entered Factory 5220 | -5/Factory | Identified exit to DSF 5310 | -5/Factory | Entered DSF 5331 | -5/DSF | Additional patrols routed to DSF 5387 | -5/DSF | Discovered exit to Factory (range 16) 5393 | -5/DSF | Entered Factory 5393 | -4/Factory | Evolved 2 slots: Utility x2 5394 | -4/Factory | Identified exit to Research 5394 | -4/Factory | Identified exit to Armory 5625 | -4/Factory | Self-destructed Last Messages --------------- >>Seal Access door sealed. 05524_ >> Watcher Feeds: Established visual feed link with W-44 Eye. 05526_ K-01 Serf cleans the Matter Pump. 05539_ >> Watcher Feeds: Feed link from W-44 Eye lost. 05563_ System corrupted: Substantial component data lost. 05602_ Destroyed VTOL Module. 05602_ S-27 Virus destroyed. 05602_ Subcomponent Replicator disabled. 05602_ S-27 Virus destroyed. 05612_ Flightbrick destroyed. 05612_ Temporary Utility slot lost. 05613_ System corrupted: Lgt. Antimatter Reactor rejected. 05613_ The unstable cave ceiling collapses. 05613_ Xenon Bombardment Thruster destroyed. 05615_ Deep Structural Scanner destroyed. 05617_ Destroyed Lgt. Nuclear Core. 05619_ S-27 Virus destroyed. 05619_ Spear destroyed. 05622_ Slammed into S-27 Virus. Map ----- +----------------------------------------------------+ | ?????????????????????????????????????????????????? | | ?????????????????????????????????????????????????? | | ?????????????????????????????????????????????????? | | ?????????????????????????????????????????????????? | | ?????????????????????????????????????????????????? | | ?????????????????????????????????????????????????? | | ?????????????????????????????????????????????????? | | ?????????????????????????????????????????????????? | | ?????????????????????????????????????????????????? | | ?????????????????????????????????????????????????? | | ?????????????????????????????????????????????????? | | ???????????????????????????????????????? ######### | | ????????????????????????????????????????? | | ?????????????????????????????????????????? | | ????????????????????????????????????????? """ | | ????????????????????????????????????????? """ | | ?????????????????????????????????? """ | | ?????????????????????????????????????#### | | ????????????????????????????????????? ## """ | | ?????????????????"??????????????????? ## """ | | ?????????????????""?????????????????? ## """ | | ??????????????" """ + "?????" ## | | ???????????? u######## ?????" ##] """ | | ???????????? ####### ?? """ ## """ | | ???????????? ## # ###### ?? ## """ | | ???????????? # % @% ## ?? ## | | ???????????? # % ""s #####?####+## """ | | ???????????? + %** "" ########## ## """ | | ???????????? # " ########## ## """ | | ???????????t # ########## ## | | ???????????? ####################### ## """ | | ????????????+################ # ## """ | | ???????????? ########## """# ## """ | | ???????????? ########## | """# ## | | ????????????????????????##### """# """ | | ?????????????????????????#### + """ | | ?????????????????????????#### """# """ | | ?????????????????????????#### """# | | ?????????????????????????#### """# | | ?????????????????????????#### #######+#### | | ?????????????????????????############## ## | | ?????????????????????????############## ## | | ?????????????????????????############## ## | | ?????????????????????????############## ???? ## | | ?????????????????????????????????????????????????? | | | | | | | | | | | +----------------------------------------------------+ Best States ------------- Heat Dissipation 43 Coolant Potential 50 Energy Generation 24 Energy Capacity 275 Matter Stores 300 Matter Capacity 300 Sight Range 16 Robot Scan Range 15 Terrain Scan Range 30 Terrain Scan Density 1210 Jamming Range 14 Cloak Strength 2 Power Amplification 20 Corruption Containment 8 Evasion (%) 63 Targeting Accuracy 12 Melee Accuracy 6 Recoil Reduction 2 Offensive Hacking 30 Defensive Hacking 36 Relay Coupler Types 1 Relay Coupler Value 17 Authchip Count 1 Item Schematics ----------------- Nova Cannon | -5/Factory | Hacked Adv. Corruption Screen | -5/Factory | Hacked Robot Schematics ------------------ O-24 Administrator | -8/Recycling | Hacked Fabricated ------------ Nothing Repaired ---------- Nothing Alien Tech Used ----------------- None Achievements -------------- None Challenges ------------ None Game ------ Seed AntimissileImpactDoomcannon Manual? 0 Play Time 01:25:05 Cumulative 561.7 hours Start 2025.06.29 @ 16:35:14 End 2025.06.30 @ 07:45:20 Sessions 3 Manual Loads 0 Difficulty Rogue Special Mode None Game No. 678 Rogue 678 Adventurer 0 Explorer 0 Win Type - Total 20 Types 14/0/5/1/0/0/0/0/0/0 Lore% 86 Gallery% 83 Achievement% 83 Wizard Run 0 Options --------- Layout 0 ASCII 0 Keyboard 0 Movement Numpad Keybinds 0 Fullscreen 1 Font 18/SmallcapsGlow Map View 76x50 Zoom Use 0% Tactical HUD 1 Map Filters NONE Filters NONE Steam 1 RUN: c629a014-9d9f-41a1-89da-1ec7662aef65